Cogmind - Beta 11 X8 @@@ ROGUE MODE // 2022.01.06 @ 21:38:47 Player: maxwell Result: Destroyed by DAS Turret with DAS Cannon Performance ------------- Evolutions (1) 500 Regions Visited (5) 1000 Robots Destroyed (39) 195 Value Destroyed (1075) 1075 Prototype IDs (33) 660 Alien Tech Used (0) 0 Bonus (-149) -149 TOTAL SCORE: 3281 Bonus ------- Follower Combat Kills 105 Aligned with FarCom 300 Friendly Fire -554 Cogmind --------- Core Integrity 0/400 Matter 119/300 Energy 39/200 System Corruption 0% Temperature Cool (0) Movement Treading (240) Ox1 Location -9/Exiles Parts ------- > --- POWER (1) -------- Cold Fusion Reactor > --- PROPULSION (3) --- Light Treads Advanced Myomer Leg > --- UTILITY (2) ------ Improved Targeting Computer Shield Generator > --- WEAPON (3) ------- Heavy Assault Rifle Heavy Assault Rifle Heavy Assault Rifle > --- INVENTORY (5) ---- Huge Storage Unit Signal Interpreter Firepult Rocket Launcher Peak State ------------ > --- POWER ------------ Cold Fusion Reactor > --- PROPULSION ------- Light Treads Advanced Myomer Leg > --- UTILITY ---------- High-capacity Storage Unit Improved Targeting Computer > --- WEAPON ----------- Heavy Assault Rifle Heavy Assault Rifle Heavy Assault Rifle > --- INVENTORY -------- Huge Storage Unit Experimental Sensor Array Signal Interpreter Shield Generator Firepult Heavy Battle Rifle Light Cannon Rocket Launcher Longsword +1 [Rating: 28] Favorites ----------- Power Light Ion Engine Engine Light Ion Engine Reactor Cold Fusion Reactor Propulsion Light Treads Treads Light Treads Leg Aluminum Leg Utility Weapon Shielding Device Shield Generator Storage High-capacity Storage Unit Processor Improved Targeting Computer Protection Weapon Shielding Weapon Improved Assault Rifle Energy Gun Small Laser Ballistic Gun Improved Assault Rifle Ballistic Cannon Light Cannon Launcher Rocket Launcher Slashing Weapon Longsword +1 Build | -11 -10 -10 -9 -9 -9 ------- Run | Scr Mat Min Mat Min Exi Slots Evolved 2 | . . . 2 . . Power . | . . . . . . Propulsion 1 | . . . 1 . . Utility . | . . . . . . Weapon 1 | . . . 1 . . Parts Attached 54 | 6 12 1 12 4 19 Power 7 | 1 1 . 3 . 2 Engine 6 | 1 1 . 3 . 1 Core . | . . . . . . Reactor 1 | . . . . . 1 Propulsion 16 | 2 5 . 3 1 5 Treads 13 | 2 3 . 3 1 4 Leg 3 | . 2 . . . 1 Wheel . | . . . . . . Hover . | . . . . . . Flight . | . . . . . . Utility 9 | 1 3 . 1 . 4 Device 1 | . . . . . 1 Storage 3 | 1 2 . . . . Processor 1 | . . . . . 1 Hackware . | . . . . . . Protection 4 | . 1 . 1 . 2 Artifact . | . . . . . . Weapon 22 | 2 3 1 5 3 8 Energy Gun 2 | 1 1 . . . . Energy Cannon . | . . . . . . Ballistic Gun 15 | 1 1 1 5 1 6 Ballistic Cannon 2 | . 1 . . . 1 Launcher 2 | . . . . 2 . Special Weapon . | . . . . . . Impact Weapon . | . . . . . . Slashing Weapon 1 | . . . . . 1 Piercing Weapon . | . . . . . . Special Melee Weapon . | . . . . . . Unidentified Prototypes 3 | . 1 . . . 2 Parts Lost 20 | . 4 . 2 . 14 Power 3 | . . . 1 . 2 Propulsion 9 | . 2 . 1 . 6 Utility 3 | . . . . . 3 Weapon 5 | . 2 . . . 3 Highest Loss Streak 5 | . 2 . 2 . 5 Average Slot Usage (%) 95 | . 94 100 97 100 88 Engine 12 | . 14 14 10 11 8 Treads 21 | . 7 28 31 33 24 Leg 6 | . 18 . . . 3 Storage 13 | . 17 14 11 11 10 Protection 9 | . 7 14 11 11 7 Ballistic Gun 26 | . 25 28 32 23 23 Launcher 2 | . . . . 9 6 Naked Turns . | . . . . . . Heaviest Build 61 | 11 49 50 57 58 61 Greatest Support 60 | 40 40 40 60 60 60 Greatest Overweight (x) 10 | . 10 1 1 . 3 Average Overweight (x) . | . . 1 . . . Largest Inventory Capacity 20 | 8 20 20 20 20 20 Average Capacity 18 | 6 14 20 20 20 19 Most Carried 20 | 1 15 15 20 20 20 Average Carried 14 | . 10 14 15 19 16 Final Capacity 20 | 8 20 20 20 20 5 Final Carried 20 | 1 14 15 20 20 5 Class Distribution -------------------- 80% | Mutant 7% | Scavenger-Tank 5% | Tank 3% | Scavenger-Gunner 3% | Gunner Dominant Class ---------------- Mutant | -10/Materials Mutant | -10/Mines Scavenger-Tank | -9/Materials Mutant | -9/Mines Mutant | -9/Exiles Resources | -11 -10 -10 -9 -9 -9 ----------- Run | Scr Mat Min Mat Min Exi Matter Collected 1480 | 189 455 164 295 113 264 Remotely . | . . . . . . Salvage Created 1491 | . 503 176 668 64 80 Parts 89 | . 35 13 39 2 . Haulers Intercepted 6 | . 2 . 4 . . Recyclers Shooed 1 | . 1 . . . . Parts Field Recycled . | . . . . . . Retrieved Matter . | . . . . . . Parts Self-Destructed . | . . . . . . Prevented . | . . . . . . Kills | -11 -10 -10 -9 -9 -9 ------- Run | Scr Mat Min Mat Min Exi Combat Hostiles Destroyed 29 | . 10 4 9 3 3 Melee 1 | . . . . . 1 Guns 24 | . 9 4 9 2 . Cannons 1 | . 1 . . . . AOE 3 | . . . . 1 2 Classes Destroyed 10 | . 4 1 3 2 . Worker 1 | . 1 . . . . Builder 1 | . . 1 . . . Hauler 6 | . 2 . 4 . . Recycler 2 | . . . 1 1 . Watcher 3 | . 3 . . . . Grunt 19 | . 10 4 5 . . Duelist 1 | . . . 1 . . Sentry 3 | . . . 3 . . Demolisher 2 | . . . . 2 . Assembled 6 | . . . . 1 5 Best Kill Streak 5 | . 5 2 4 4 2 Combat Bots Only 4 | . 4 2 3 3 2 Max Kills in Single Turn 3 | . 2 1 1 2 3 Gunslinging 1 | . 1 . . . . Exploded 2 | . . . . 1 2 Melee 1 | . . . . . 1 Uniques/NPCs Destroyed 3 | . . . . . 3 EX-HEX (-9/Exiles) EX-BIN (-9/Exiles) 8R-AWN (-9/Exiles) Combat | -11 -10 -10 -9 -9 -9 -------- Run | Scr Mat Min Mat Min Exi Damage Taken 3320 | . 782 198 275 222 1843 Core 600 | . 143 21 58 29 349 Absorbed by Shields 47 | . . . . . 47 Core Remaining (%) 67 | 100 . 34 . . . Volleys Fired 143 | . 65 12 25 5 36 Largest 3 | . 2 2 3 3 3 Hottest 79 | . 60 46 69 69 79 Shots Fired 340 | . 129 24 75 13 99 Gun 320 | . 112 24 75 12 97 Cannon 17 | . 17 . . . . Launcher 3 | . . . . 1 2 Special . | . . . . . . Kinetic 320 | . 112 24 75 12 97 Thermal 17 | . 17 . . . . Explosive 3 | . . . . 1 2 Electromagnetic . | . . . . . . Robot Hit Streak 17 | . 9 12 9 7 17 Robot Miss Streak 7 | . 7 3 4 1 2 Penetration Max . | . . . . . . Secondary Targets 2 | . 1 . . 1 . Max Gunslinging Chain 1 | . 1 . . 1 . Shots Hit Robots 226 | . 80 18 44 9 75 Core Hits 87 | . 30 8 19 6 24 Critical Kills 1 | . 1 . . . . Critical Parts Destroyed 1 | . . 1 . . . Critical Strikes 3 | . 1 1 . . 1 Destroy 2 | . 1 1 . . . Sever 1 | . . . . . 1 Melee Attacks 9 | . . . . . 9 Impact . | . . . . . . Slashing 9 | . . . . . 9 Piercing . | . . . . . . Sneak Attacks . | . . . . . . Combat Hostiles . | . . . . . . Follow-up Attacks . | . . . . . . Damage Inflicted 4009 | . 1229 304 679 218 1579 Guns 3044 | . 964 276 679 144 981 Cannons 265 | . 265 . . . . Explosions 332 | . . . . 74 258 Melee 340 | . . . . . 340 Ramming 28 | . . 28 . . . Kinetic 3163 | . 1083 276 679 144 981 Thermal 146 | . 146 . . . . Explosive 332 | . . . . 74 258 Electromagnetic . | . . . . . . Impact . | . . . . . . Slashing 340 | . . . . . 340 Piercing . | . . . . . . Highest Corruption . | . . . . . . Average Corruption . | . . . . . . Corruption Purged . | . . . . . . Overload Shots . | . . . . . . Overflow Damage . | . . . . . . Projectiles . | . . . . . . Explosions . | . . . . . . Melee . | . . . . . . Knockbacks 8 | . 8 . . . . Impact . | . . . . . . Kinetic 6 | . 6 . . . . Secondary 2 | . 2 . . . . Self-Inflicted Damage . | . . . . . . Shots . | . . . . . . Rammed 6 | . . 5 1 . . Targets Rammed 7 | . . 6 1 . . Kicked . | . . . . . . Crushed 1 | . . 1 . . . Highest Temperature 276 | . 276 5 12 6 78 Average Temperature 54 | . 109 3 5 2 23 Received Heat Transfer 729 | . 495 111 114 . 9 Siege Activations . | . . . . . . Robots Corrupted . | . . . . . . Combat Hostiles . | . . . . . . Parts Fried . | . . . . . . Impact Corruptions . | . . . . . . Robots Melted . | . . . . . . Combat Hostiles . | . . . . . . Parts Melted . | . . . . . . Heat Transferred 325 | . 325 . . . . Parts Sabotaged . | . . . . . . Parts Stolen . | . . . . . . Parts Stripped . | . . . . . . Power Chain Reactions . | . . . . . . Missiles Intercepted . | . . . . . . Alert | -11 -10 -10 -9 -9 -9 ------- Run | Scr Mat Min Mat Min Exi Peak Influence 250 | . 250 71 212 157 . Initial 57 | . . . . 57 . Average 59 | . 55 37 113 103 . Maximum Alert Level 1 | . 1 . 1 . . Low Security (%) 95 | 100 91 100 89 100 . Level 1 4 | . 8 . 10 . . Level 2 . | . . . . . . Level 3 . | . . . . . . Level 4 . | . . . . . . Level 5 . | . . . . . . High Security . | . . . . . . Max Security . | . . . . . . Squads Dispatched 3 | . 2 . 1 . . Investigation 2 | . 1 . 1 . . Extermination . | . . . . . . Reinforcement 1 | . 1 . . . . Assault . | . . . . . . Garrison . | . . . . . . Intercept . | . . . . . . Construction Impeded . | . . . . . . Haulers Reinforced . | . . . . . . Active Scanning Responses . | . . . . . . Cargo Convoy Interrupts . | . . . . . . Stealth | -11 -10 -10 -9 -9 -9 --------- Run | Scr Mat Min Mat Min Exi Distress Signals 1 | . . . . 1 . Communications Jammed . | . . . . . . Distress Signals . | . . . . . . Times Spotted 50 | . 18 6 15 5 6 Peak Tracking Total 6 | . 6 2 4 3 6 Tactical Retreats 7 | . . . 1 2 4 Traps | -11 -10 -10 -9 -9 -9 ------- Run | Scr Mat Min Mat Min Exi Traps Triggered 5 | . 2 . 3 . . Indirectly . | . . . . . . Trap Hack Attempts . | . . . . . . Triggered . | . . . . . . Disarmed . | . . . . . . Reprogrammed . | . . . . . . Reused . | . . . . . . Traps Extracted . | . . . . . . Installed . | . . . . . . Triggered . | . . . . . . Machines | -11 -10 -10 -9 -9 -9 ---------- Run | Scr Mat Min Mat Min Exi Machines Disabled 5 | . . 1 . . 4 Max in Single Turn 2 | . . . . . 2 Machines Sabotaged . | . . . . . . Garrisons Compromised . | . . . . . . Overloaded Fab Kills . | . . . . . . Hacking | -11 -10 -10 -9 -9 -9 --------- Run | Scr Mat Min Mat Min Exi Machines Accessed 11 | . 5 1 3 . 2 Terminals 8 | . 5 1 2 . . Fabricators . | . . . . . . Repair Stations . | . . . . . . Recycling Units . | . . . . . . Scanalyzers 1 | . . . 1 . . Garrison Access . | . . . . . . Total Hacks 43 | . 23 8 10 . 2 Successful 25 | . 13 4 6 . 2 Failed 18 | . 10 4 4 . . Catastrophic 2 | . . 1 1 . . Database Lockouts . | . . . . . . Manual 31 | . 15 8 7 . 1 Terminals 38 | . 23 8 7 . . Fabricators . | . . . . . . Repair Stations . | . . . . . . Recycling Units . | . . . . . . Scanalyzers 3 | . . . 3 . . Garrison Access . | . . . . . . Terminal Hacks 16 | . 9 4 1 . 2 Record 1 | . . . . . 1 Robot Analysis 5 | . 5 . . . . Prototype ID Bank 6 | . 2 4 . . . Terminal Index 2 | . 1 . 1 . . Locate Traps 1 | . 1 . . . . EX-Prototype ID Bank 1 | . . . . . 1 Fabricator Hacks . | . . . . . . Repair Station Hacks . | . . . . . . Recycling Unit Hacks . | . . . . . . Scanalyzer 1 | . . . 1 . . Insert Component 1 | . . . 1 . . Garrison Access Hacks . | . . . . . . Unauthorized Hacks 8 | . 4 . 4 . . Terminals 8 | . 4 . 4 . . Track 3 | . 1 . 2 . . Botnet 5 | . 3 . 2 . . Fabricators . | . . . . . . Repair Stations . | . . . . . . Recycling Units . | . . . . . . Scanalyzers . | . . . . . . Garrison Access . | . . . . . . Data Cores Recovered . | . . . . . . Used . | . . . . . . Hacking Detections 9 | . 5 1 3 . . Full Trace Events . | . . . . . . Feedback Events . | . . . . . . Feedback Blocked . | . . . . . . Robot Schematics Acquired . | . . . . . . Robots Built . | . . . . . . Authchips . | . . . . . . Time . | . . . . . . Total Robot Build Rating . | . . . . . . Part Schematics Acquired . | . . . . . . Parts Built . | . . . . . . Authchips . | . . . . . . Time . | . . . . . . Total Part Build Rating . | . . . . . . Parts Repaired . | . . . . . . Time . | . . . . . . Parts Recycled . | . . . . . . Recycled Matter . | . . . . . . Retrieved Matter . | . . . . . . Retrieved Components . | . . . . . . Parts Scanalyzed 1 | . . . 1 . . Part Schematics Acquired . | . . . . . . Parts Damaged . | . . . . . . Bothacking | -11 -10 -10 -9 -9 -9 ------------ Run | Scr Mat Min Mat Min Exi Used RIF Installer . | . . . . . . Robots Hacked . | . . . . . . Non-combat . | . . . . . . Combat . | . . . . . . Robot Hacks Applied . | . . . . . . Relay Couplers Released . | . . . . . . Fabnet Peak Effective % . | . . . . . . Robots Rewired . | . . . . . . Allies Hacked . | . . . . . . Hacks Repelled . | . . . . . . Allies | -11 -10 -10 -9 -9 -9 -------- Run | Scr Mat Min Mat Min Exi Total Allies 3 | . . 3 . . . Largest Group 3 | . . 3 2 . . Highest-Rated Group 77 | . . 77 46 . . Highest-Rated Ally 31 | . . 31 31 . . Total Orders . | . . . . . . Ally Attacks 55 | . . 17 22 . 16 Total Damage 1226 | . . 149 238 . 839 Kills 10 | . . 2 3 . 5 Allies Corrupted 1 | . . . . . 1 Allies Melted . | . . . . . . Turrets Deployed 3 | . . . . . 3 Intel | -11 -10 -10 -9 -9 -9 ------- Run | Scr Mat Min Mat Min Exi Robot Analysis Total 5 | . 5 . . . . Derelict Logs Recovered 2 | . . 1 . 1 . Drone Launches . | . . . . . . Drone Recoveries . | . . . . . . Exploration | -11 -10 -10 -9 -9 -9 ------------- Run | Scr Mat Min Mat Min Exi Turns Passed 5986 | 67 1727 1690 582 402 1518 Spaces Moved 2649 | 38 754 675 282 197 703 Core 9 | 2 7 . . . . Treads 2001 | 36 205 675 282 197 606 Legs 639 | . 542 . . . 97 Wheels . | . . . . . . Hover . | . . . . . . Flight . | . . . . . . Fastest Speed 50 | 50 160 240 160 160 160 Average Speed 196 | 154 192 240 164 160 184 Slowest Speed 550 | 160 550 240 240 160 400 Overloaded Moves . | . . . . . . Propulsion Burnouts . | . . . . . . Robots Hopped . | . . . . . . Cave-ins Triggered . | . . . . . . Exploration Rate (%) 54 | 4 94 102 25 32 68 Regions Visited 5 Branch Regions 3 Pre-discovered Areas 2 | . . 1 . . 1 Known Exits Taken . | . . . . . . Unknown Exits Taken 5 | 1 1 1 1 1 . Scrap Searched 1 | . . 1 . . . Spaces Dug . | . . . . . . Terrain Destroyed 32 | . . . . 13 19 Melee . | . . . . . . Projectile 3 | . . . . . 3 AOE 29 | . . . . 13 16 Terrain Rammed . | . . . . . . Walls Destroyed . | . . . . . . Machines Disabled . | . . . . . . Actions | -11 -10 -10 -9 -9 -9 --------- Run | Scr Mat Min Mat Min Exi Total 3114 | 44 898 713 343 273 843 Wait 174 | . 38 19 2 64 51 Move 2644 | 37 753 674 281 196 703 Hop . | . . . . . . Pick Up 52 | 1 21 1 15 2 12 Fast Attach 20 | 6 5 . 5 . 4 Attach 22 | . 5 . 6 1 10 Detach . | . . . . . . Swap 13 | . 3 1 1 3 5 Drop 30 | . 8 . 7 2 13 Fire 143 | . 65 12 25 5 36 Melee 9 | . . . . . 9 Ram . | . . . . . . Kick . | . . . . . . Crush 7 | . . 6 1 . . Escape Stasis . | . . . . . . Rewire . | . . . . . . Trap . | . . . . . . Miscellaneous . | . . . . . . Route ------- -11/Scrapyard -10/Materials (discovered 5 exits: *Mat x3 / *Min x2) -10/Mines (discovered 2 exits: *Mat x2) -9/Materials -9/Mines -9/Exiles History --------- Turn | Location | Event 9 | -11/Scrapyard | Discovered new exit (range 16) 68 | -11/Scrapyard | Entered Materials 195 | -10/Materials | Discovered new exit (range 11) 209 | -10/Materials | Discovered new exit (range 14) 302 | -10/Materials | Build established: Mutant 317 | -10/Materials | Core integrity fell below 50% 796 | -10/Materials | Discovered new exit (range 16) 1011 | -10/Materials | Discovered new exit (range 15) 1212 | -10/Materials | Discovered new exit (range 16) 1795 | -10/Materials | Entered Mines 1889 | -10/Mines | Found a damaged Exp. Sensor Array with a note attached 1894 | -10/Mines | Found Prototype Device 2136 | -10/Mines | Learned location of Mines (-8) 2305 | -10/Mines | Received a Mining Laser from a helpful Derelict 2615 | -10/Mines | Discovered new exit (range 5) 3019 | -10/Mines | Discovered new exit (range 5) 3485 | -10/Mines | Entered Materials 3485 | -9/Materials | Accompanied by 2 allies 3485 | -9/Materials | Evolved 2 slots: Propulsion x1, Weapon x1 3490 | -9/Materials | Led the pair of lost Derelicts to an unsafe place 3877 | -9/Materials | Identified Exp. Sensor Array 3945 | -9/Materials | Discovered new exit (range 15) 4067 | -9/Materials | Entered Mines 4068 | -9/Mines | Assembled infested the area 4073 | -9/Mines | Assisted by a Guerilla fighting off Assembled 4074 | -9/Mines | Received a Rocket Launcher from a helpful Derelict 4115 | -9/Mines | Learned 2 Materials zone layouts 4301 | -9/Mines | A weapon hastily lodged in a ceiling crevice suddenly fell to the ground 4459 | -9/Mines | Deemed a non-threat by the Exiles lab entrance 4461 | -9/Mines | Discovered new exit (range 5) 4469 | -9/Mines | Entered Exiles 4509 | -9/Exiles | Met 8R-AWN 4535 | -9/Exiles | Met EX-HEX 4627 | -9/Exiles | Met EX-DEC 4659 | -9/Exiles | Learned location of Zion (-7) 4789 | -9/Exiles | Met EX-BIN 4806 | -9/Exiles | Aligned with FarCom system 4808 | -9/Exiles | Given EX-Vault access code 4845 | -9/Exiles | Opened EX-Vault 4854 | -9/Exiles | Found Deploy-a-Sentry 4857 | -9/Exiles | Found Deploy-a-Sentry 4862 | -9/Exiles | Found Deploy-a-Sentry 4866 | -9/Exiles | Found Longsword +1 4876 | -9/Exiles | Found Firepult 4922 | -9/Exiles | Warned to stay clear of 0b10 Research branches 5012 | -9/Exiles | DAS Turret deployed 5169 | -9/Exiles | DAS Turret deployed 5171 | -9/Exiles | DAS Turret deployed 5352 | -9/Exiles | Attacked by the Exiles 5355 | -9/Exiles | Allies destroyed EX-HEX 5359 | -9/Exiles | Allies destroyed EX-BIN 5432 | -9/Exiles | Lost 5 parts (3n1u1w) 5456 | -9/Exiles | Core integrity fell below 50% 5484 | -9/Exiles | Destroyed 8R-AWN 5511 | -9/Exiles | Lost 5 parts (2n1u2w) 5622 | -9/Exiles | Core integrity fell below 20% 5987 | -9/Exiles | Destroyed by DAS Turret with DAS Cannon Last Messages --------------- 05512_ Identified Adv. Myomer Leg. 05520_ The unstable cave ceiling collapses. 05532_ Acquired 50 matter. 05548_ Acquired 5 matter. 05569_ Acquired 14 matter. 05591_ Acquired 10 matter. 05593_ Lgt. Treads destroyed. 05593_ Imp. Ion Engine destroyed. 05597_ Acquired 8 matter. 05597_ Knocked back. 05621_ Hvy. Assault Rifle blasted off. 05623_ Acquired Hvy. Assault Rifle. 05663_ Ion Engine destroyed. 05666_ Weapon Shielding destroyed. 05673_ Acquired 8 matter. 05684_ Acquired Prototype Reactor. 05684_ Identified Cold Fusion Reactor. 05686_ Acquired 9 matter. 05785_ Acquired Lgt. Treads. 05922_ Acquired 12 matter. Map ----- +----------------------------------------------------+ | ???????????????????#" ## #???????????????? | | ???????????????????#""""""?# #?#########?????? | | ???????????????????##"###??# #?#"""""""#?????? | | ???????????????????????????# #?#"""""""#?????? | | ???????????????????????????# #?#"""""""#?????? | | ??????????????????????????## ###"" """"#?????? | | #?????????????????????????#" """"#?????? | | #?????????????????????????#" """#?????? | | #?????????????????????????#" """#?????? | | #?????????????????????????#" """#?????? | | #?????????????????????????#" """#?????? | | #?????????????????????????#" """#?????? | | #????????????? ""?????????## """"?????? | | ?????????????" ??????????# """#?????? | | ?????????????" ??????????#" "X" """"?????? | | ?????????????" ??????????#" """ #?????? | | ???????????? ""?????????#" """""""""#?????? | | ##???????????" "?????????##" ###########?????? | | ##??????????# #????????##"" #???????????????? | | ######???### ###?######"" ! #???????#???????? | | """#####X# #"###"""""""! ! ##?????? ##?????? | | """""" " "" ! ##???###"####### | | "" """ " / #####""" """""# | | " " [!! "" """" | | # % ] [ * "" " | | ### @ " "" | | ??## % % " | | ???## | | ????##" %% | | ?????#""" """""" | | ????##" ######""" | | ????#"" ""##????#####" ! | | ???##""" """##?????????##""" ! ! | | ???#""" """##???????????#" " ! | | ???#""" ""#???????????##"" | | ???#" % % ########??####"""" | | ???#""" % ## ####""" | | ???#"" % % % """" | | ???##"" | | ????#"""" | | ????## " | | ?????#" " "" """ | | ?????#"""" ""## ##""" " " ""#" | | ?????#"" ""#### ######""" """# | | ?????#" """"##??# #????###""""### # | | ?????#""" """#??## ####???######?# # | | ?????## ""##??#! "!#??????????##### | | ??????#"" """##???#" !! !#??????????????? | | ??????##""" ##????#" "#??????????????? | | ???????##"""" ##?????#!!"" "#??????????????? | +----------------------------------------------------+ Best States ------------- Heat Dissipation 28 Energy Generation 17 Energy Capacity 265 Matter Stores 300 Matter Capacity 300 Sight Range 16 Terrain Scan Density 10 Weapon Shielding 33 Evasion (%) 40 Targeting Accuracy 6 Recoil Reduction 3 Item Schematics ----------------- None Robot Schematics ------------------ None Fabricated ------------ Nothing Alien Tech Used ----------------- None Achievements -------------- None Challenges ------------ None Game ------ Seed TacticalRocketTorch Manual? 0 Play Time 00:24:58 Cumulative 142.8 hours Start 2022.01.06 @ 21:13:59 End 2022.01.06 @ 21:38:47 Sessions 1 Manual Loads 0 Difficulty Rogue Special Mode None Game No. 246 Rogue 229 Adventurer 4 Explorer 13 Win Type - Total 8 Types 6/0/0/2/0/0/0/0/0 Lore% 64 Gallery% 83 Achievement% 68 Wizard Run 0 Options --------- ASCII 0 Keyboard 1 Movement Numpad Keybinds 0 Fullscreen 1 Font 18/SmallcapsGlow Map View 76x50 Tactical HUD 1 Map Filters NONE Filters NONE Steam 1 RUN: c5f9fbd7-2ead-46e4-9cf2-85ee81fe740a